[Event "*** Titled Tuesday Blitz"]
[Site "Chess.com"]
[Date "2020.11.24"]
[Round "7"]
[White "Khnykin_Nikolay"]
[Black "MasterMK73"]
[Result "0-1"]
[WhiteElo "2068"]
[BlackElo "2266"]
[TimeControl "180+1"]
[EndTime "11:34:39 PST"]
[Termination "MasterMK73 won on time"]

1. e4 {[%clk 0:01:20.5]} 1... c5 {[%clk 0:02:57.2]} 2. d4 {[%clk 0:01:18.8]}
2... cxd4 {[%clk 0:02:56.5]} 3. c3 {[%clk 0:01:18.8]} 3... d3 {[%clk 0:02:56.3]}
4. c4 {[%clk 0:01:17.5]} 4... Nc6 {[%clk 0:02:54.6]} 5. Bxd3 {[%clk 0:01:17.5]}
5... d6 {[%clk 0:02:54.4]} 6. Nf3 {[%clk 0:01:16.9]} 6... g6 {[%clk 0:02:54]} 7.
Nc3 {[%clk 0:01:15.3]} 7... Bg7 {[%clk 0:02:53.9]} 8. O-O {[%clk 0:01:14.4]}
8... Nf6 {[%clk 0:02:52]} 9. Bf4 {[%clk 0:01:13.4]} 9... O-O {[%clk 0:02:51.2]}
10. Re1 {[%clk 0:01:10.8]} 10... Nd7 {[%clk 0:02:43.2]} 11. Nd5 {[%clk
0:00:57.5]} 11... Nc5 {[%clk 0:02:37]} 12. Rb1 {[%clk 0:00:53.7]} 12... a5
{[%clk 0:02:29]} 13. e5 {[%clk 0:00:53.4]} 13... Nxd3 {[%clk 0:02:19.5]} 14.
Qxd3 {[%clk 0:00:51.1]} 14... Bf5 {[%clk 0:02:19.4]} 15. Qb3 {[%clk 0:00:48.7]}
15... Bxb1 {[%clk 0:02:14.3]} 16. Rxb1 {[%clk 0:00:47.5]} 16... dxe5 {[%clk
0:02:11.4]} 17. Qxb7 {[%clk 0:00:46]} 17... exf4 {[%clk 0:01:49]} 18. Qxc6
{[%clk 0:00:44.1]} 18... e5 {[%clk 0:01:44]} 19. Re1 {[%clk 0:00:41.4]} 19...
Rc8 {[%clk 0:01:32.4]} 20. Qxc8 {[%clk 0:00:39.1]} 20... Qxc8 {[%clk 0:01:29.8]}
21. Ne7+ {[%clk 0:00:38.4]} 21... Kh8 {[%clk 0:01:30.2]} 22. Nxc8 {[%clk
0:00:38]} 22... Rxc8 {[%clk 0:01:30.8]} 23. b3 {[%clk 0:00:38]} 23... f6 {[%clk
0:01:26.2]} 24. g3 {[%clk 0:00:35.8]} 24... fxg3 {[%clk 0:01:24.1]} 25. fxg3
{[%clk 0:00:35.5]} 25... Rd8 {[%clk 0:01:20.8]} 26. Kf2 {[%clk 0:00:32.1]} 26...
g5 {[%clk 0:01:20]} 27. h3 {[%clk 0:00:29.2]} 27... h5 {[%clk 0:01:19.9]} 28.
Ke3 {[%clk 0:00:28.2]} 28... Kh7 {[%clk 0:01:14.4]} 29. Ke4 {[%clk 0:00:26.2]}
29... Kg6 {[%clk 0:01:14.5]} 30. g4 {[%clk 0:00:21.3]} 30... Bf8 {[%clk
0:01:09]} 31. gxh5+ {[%clk 0:00:18.6]} 31... Kxh5 {[%clk 0:01:05.4]} 32. Rh1
{[%clk 0:00:18.2]} 32... Kg6 {[%clk 0:01:03.7]} 33. h4 {[%clk 0:00:17.4]} 33...
g4 {[%clk 0:01:00.7]} 34. h5+ {[%clk 0:00:17.1]} 34... Kh6 {[%clk 0:00:59]} 35.
Ne1 {[%clk 0:00:15.3]} 35... Rd4+ {[%clk 0:00:57.2]} 36. Kf5 {[%clk 0:00:14.4]}
36... Rf4+ {[%clk 0:00:55.6]} 37. Ke6 {[%clk 0:00:13.8]} 37... Kg5 {[%clk
0:00:51.5]} 38. Nd3 {[%clk 0:00:11.9]} 38... Rd4 {[%clk 0:00:50.2]} 39. Nc5
{[%clk 0:00:09.3]} 39... g3 {[%clk 0:00:48.8]} 40. Rg1 {[%clk 0:00:07.6]} 40...
Rg4 {[%clk 0:00:45.1]} 0-1

[Event "*** Titled Tuesday Blitz"]
[Site "Chess.com"]
[Date "2020.11.24"]
[Round "7"]
[White "mikheeva86"]
[Black "rugbyclub"]
[Result "0-1"]
[WhiteElo "1971"]
[BlackElo "2184"]
[TimeControl "180+1"]
[EndTime "11:34:39 PST"]
[Termination "rugbyclub won on time"]

1. e4 {[%clk 0:03:00.9]} 1... e6 {[%clk 0:02:55.6]} 2. d4 {[%clk 0:03:00]} 2...
d5 {[%clk 0:02:54.5]} 3. e5 {[%clk 0:03:00.5]} 3... c5 {[%clk 0:02:53.8]} 4. c3
{[%clk 0:03:01.1]} 4... Nc6 {[%clk 0:02:54.2]} 5. Nf3 {[%clk 0:03:01.3]} 5...
Bd7 {[%clk 0:02:54.6]} 6. Be2 {[%clk 0:02:59]} 6... Qb6 {[%clk 0:02:52.7]} 7.
O-O {[%clk 0:02:49.6]} 7... Rc8 {[%clk 0:02:45.5]} 8. a3 {[%clk 0:02:44]} 8...
cxd4 {[%clk 0:02:30.8]} 9. cxd4 {[%clk 0:02:42.5]} 9... Nge7 {[%clk 0:02:30.8]}
10. b4 {[%clk 0:02:33.1]} 10... Nf5 {[%clk 0:02:25.3]} 11. Be3 {[%clk
0:02:31.3]} 11... a5 {[%clk 0:02:09.5]} 12. b5 {[%clk 0:02:24.4]} 12... Na7
{[%clk 0:02:00.4]} 13. a4 {[%clk 0:02:22.9]} 13... Be7 {[%clk 0:01:59.1]} 14.
Nbd2 {[%clk 0:02:17.3]} 14... O-O {[%clk 0:01:57.4]} 15. Nb3 {[%clk 0:01:49.4]}
15... Nxe3 {[%clk 0:01:49.4]} 16. fxe3 {[%clk 0:01:45.3]} 16... Rc3 {[%clk
0:01:50]} 17. Kf2 {[%clk 0:01:35.7]} 17... f6 {[%clk 0:01:33.4]} 18. exf6 {[%clk
0:01:28.9]} 18... Rxf6 {[%clk 0:01:30.2]} 19. Rb1 {[%clk 0:01:14.7]} 19... Nc8
{[%clk 0:01:17.1]} 20. Qd2 {[%clk 0:01:09.6]} 20... Bb4 {[%clk 0:01:15.9]} 21.
Nc5 {[%clk 0:00:20.1]} 21... Be8 {[%clk 0:01:03.3]} 22. Qb2 {[%clk 0:00:12.5]}
22... Nd6 {[%clk 0:00:57.5]} 23. Nd3 {[%clk 0:00:10.4]} 23... Ne4+ {[%clk
0:00:56.8]} 24. Kg1 {[%clk 0:00:09.5]} 24... Qc7 {[%clk 0:00:43.2]} 25. Nxb4
{[%clk 0:00:09.1]} 25... axb4 {[%clk 0:00:43.3]} 26. Qxb4 {[%clk 0:00:08.8]}
26... Rc2 {[%clk 0:00:44]} 27. Bd3 {[%clk 0:00:07.4]} 27... Rc3 {[%clk
0:00:40.4]} 28. Bxe4 {[%clk 0:00:04.9]} 28... dxe4 {[%clk 0:00:40.7]} 29. Ne5
{[%clk 0:00:04.2]} 29... Rxe3 {[%clk 0:00:38.6]} 30. Rxf6 {[%clk 0:00:02.8]}
30... gxf6 {[%clk 0:00:39.2]} 31. Ng4 {[%clk 0:00:02.8]} 31... Rc3 {[%clk
0:00:25.3]} 32. Nxf6+ {[%clk 0:00:02.2]} 32... Kf7 {[%clk 0:00:25.7]} 33. Nxe8
{[%clk 0:00:01.8]} 33... Rc1+ {[%clk 0:00:26.5]} 0-1

[Event "*** Titled Tuesday Blitz"]
[Site "Chess.com"]
[Date "2020.11.24"]
[Round "7"]
[White "ChessWarrior3"]
[Black "Morshynska"]
[Result "1-0"]
[WhiteElo "2100"]
[BlackElo "2255"]
[TimeControl "180+1"]
[EndTime "11:34:41 PST"]
[Termination "ChessWarrior3 won on time"]

1. e4 {[%clk 0:03:00.9]} 1... e5 {[%clk 0:02:59.5]} 2. Nf3 {[%clk 0:03:01]} 2...
Nc6 {[%clk 0:02:59.5]} 3. Bb5 {[%clk 0:03:00.3]} 3... a6 {[%clk 0:02:58.4]} 4.
Ba4 {[%clk 0:02:58.7]} 4... Nf6 {[%clk 0:02:57.1]} 5. O-O {[%clk 0:02:56.2]}
5... b5 {[%clk 0:02:56]} 6. Bb3 {[%clk 0:02:54.6]} 6... Bb7 {[%clk 0:02:56.4]}
7. Nc3 {[%clk 0:02:49.5]} 7... Be7 {[%clk 0:02:49.8]} 8. Re1 {[%clk 0:02:43.7]}
8... O-O {[%clk 0:02:49.3]} 9. Nd5 {[%clk 0:02:40.6]} 9... Na5 {[%clk
0:02:32.8]} 10. Nxe7+ {[%clk 0:02:37.8]} 10... Qxe7 {[%clk 0:02:33.7]} 11. d3
{[%clk 0:02:36.3]} 11... Nxb3 {[%clk 0:02:29.4]} 12. axb3 {[%clk 0:02:32.2]}
12... c5 {[%clk 0:02:29.8]} 13. Bd2 {[%clk 0:02:26.6]} 13... h6 {[%clk
0:02:25.8]} 14. Nh4 {[%clk 0:02:23.4]} 14... Qe6 {[%clk 0:02:23.5]} 15. c4
{[%clk 0:02:18.4]} 15... Kh7 {[%clk 0:02:12]} 16. Qf3 {[%clk 0:02:13]} 16... Qg4
{[%clk 0:02:01.8]} 17. Qxg4 {[%clk 0:02:10.6]} 17... Nxg4 {[%clk 0:02:02.7]} 18.
Nf5 {[%clk 0:02:08.4]} 18... g6 {[%clk 0:01:48.3]} 19. Nd6 {[%clk 0:02:06.5]}
19... Bc6 {[%clk 0:01:48]} 20. f3 {[%clk 0:02:05.2]} 20... Nf6 {[%clk
0:01:46.4]} 21. Be3 {[%clk 0:01:53.2]} 21... bxc4 {[%clk 0:01:29.5]} 22. bxc4
{[%clk 0:01:51.7]} 22... Rab8 {[%clk 0:01:14.8]} 23. Bxc5 {[%clk 0:01:51.1]}
23... Rxb2 {[%clk 0:01:09.2]} 24. Rxa6 {[%clk 0:01:50.3]} 24... Kg7 {[%clk
0:01:01.5]} 25. d4 {[%clk 0:01:43.6]} 25... Rfb8 {[%clk 0:00:45.6]} 26. dxe5
{[%clk 0:01:41]} 26... Nh5 {[%clk 0:00:43.2]} 27. e6 {[%clk 0:01:41]} 27... Rd2
{[%clk 0:00:20.9]} 28. exf7 {[%clk 0:01:35.5]} 28... Nf4 {[%clk 0:00:15.8]} 29.
Be3 {[%clk 0:01:27.2]} 29... Rxg2+ {[%clk 0:00:10.8]} 30. Kh1 {[%clk 0:01:27.4]}
30... Re2 {[%clk 0:00:09.4]} 31. Rxe2 {[%clk 0:01:23.8]} 31... Nxe2 {[%clk
0:00:10.3]} 32. Bc5 {[%clk 0:01:19.2]} 32... Rb2 {[%clk 0:00:07.9]} 33. h4
{[%clk 0:01:07.2]} 33... Kf8 {[%clk 0:00:08.8]} 34. h5 {[%clk 0:01:06.1]} 34...
Ng3+ {[%clk 0:00:09.7]} 35. Kg1 {[%clk 0:01:05.4]} 35... Nxh5 {[%clk 0:00:07.5]}
36. Ra1 {[%clk 0:01:04.7]} 36... Kg7 {[%clk 0:00:06.2]} 37. Re1 {[%clk
0:01:03.2]} 37... Rc2 {[%clk 0:00:04.6]} 38. Bd4+ {[%clk 0:01:00.4]} 38... Kf8
{[%clk 0:00:04.7]} 39. Bc5 {[%clk 0:00:54.9]} 39... Nf4 {[%clk 0:00:03.8]} 40.
e5 {[%clk 0:00:52.9]} 40... Nh3+ {[%clk 0:00:03.1]} 41. Kf1 {[%clk 0:00:51.1]}
41... Bxf3 {[%clk 0:00:02.1]} 42. Rb1 {[%clk 0:00:45.5]} 42... Bg2+ {[%clk
0:00:01.4]} 43. Ke1 {[%clk 0:00:45.3]} 1-0

[Event "*** Titled Tuesday Blitz"]
[Site "Chess.com"]
[Date "2020.11.24"]
[Round "7"]
[White "AliKa2810"]
[Black "dopolian"]
[Result "1-0"]
[WhiteElo "2599"]
[BlackElo "2426"]
[TimeControl "180+1"]
[EndTime "11:34:43 PST"]
[Termination "AliKa2810 won on time"]

1. d4 {[%clk 0:03:00.9]} 1... Nf6 {[%clk 0:02:59.9]} 2. c4 {[%clk 0:03:00.6]}
2... c5 {[%clk 0:03:00.2]} 3. d5 {[%clk 0:03:00.7]} 3... e6 {[%clk 0:03:00.7]}
4. Nc3 {[%clk 0:03:00.3]} 4... exd5 {[%clk 0:03:01.2]} 5. cxd5 {[%clk
0:03:01.2]} 5... d6 {[%clk 0:03:01.9]} 6. Nf3 {[%clk 0:03:01.6]} 6... g6 {[%clk
0:03:01.5]} 7. Nd2 {[%clk 0:03:01.7]} 7... Bg7 {[%clk 0:03:01.2]} 8. e4 {[%clk
0:03:02.3]} 8... O-O {[%clk 0:03:01.2]} 9. Be2 {[%clk 0:03:02.9]} 9... Nbd7
{[%clk 0:03:01.2]} 10. O-O {[%clk 0:03:03.5]} 10... Re8 {[%clk 0:02:59]} 11. h3
{[%clk 0:03:03.2]} 11... a6 {[%clk 0:02:50.4]} 12. a4 {[%clk 0:03:02.9]} 12...
Qc7 {[%clk 0:02:47.3]} 13. Qc2 {[%clk 0:02:59.5]} 13... h6 {[%clk 0:02:22.7]}
14. a5 {[%clk 0:02:58.8]} 14... b5 {[%clk 0:02:15.6]} 15. axb6 {[%clk
0:02:56.8]} 15... Nxb6 {[%clk 0:02:16]} 16. Nb3 {[%clk 0:02:57.1]} 16... c4
{[%clk 0:01:57.6]} 17. Na5 {[%clk 0:02:55]} 17... Bd7 {[%clk 0:01:58]} 18. Bf4
{[%clk 0:02:35.2]} 18... Bb5 {[%clk 0:01:55.6]} 19. Rfe1 {[%clk 0:02:22.4]}
19... Nfd7 {[%clk 0:01:48.3]} 20. Qd2 {[%clk 0:02:14.1]} 20... Kh7 {[%clk
0:01:43.2]} 21. Bg3 {[%clk 0:01:58.4]} 21... Nc5 {[%clk 0:01:40.1]} 22. Bf1
{[%clk 0:01:53.3]} 22... Bxc3 {[%clk 0:01:30.4]} 23. Qxc3 {[%clk 0:01:49.7]}
23... Nxe4 {[%clk 0:01:30.7]} 24. Qf3 {[%clk 0:01:27.5]} 24... Nxg3 {[%clk
0:01:30.3]} 25. Qxg3 {[%clk 0:01:27.5]} 25... Nxd5 {[%clk 0:01:18.3]} 26. Qf3
{[%clk 0:01:23.2]} 26... Qc5 {[%clk 0:01:14.7]} 27. Nb7 {[%clk 0:01:21.5]} 27...
Qc7 {[%clk 0:00:40.3]} 28. Qxd5 {[%clk 0:01:10.6]} 28... Bc6 {[%clk 0:00:40]}
29. Qxc4 {[%clk 0:00:53]} 29... Qxb7 {[%clk 0:00:36.8]} 30. Rxe8 {[%clk
0:00:49.4]} 30... Bxe8 {[%clk 0:00:23.4]} 31. Qd4 {[%clk 0:00:38.6]} 31... Bb5
{[%clk 0:00:14.3]} 32. Re1 {[%clk 0:00:26.7]} 32... Bxf1 {[%clk 0:00:13.5]} 33.
Kxf1 {[%clk 0:00:27.3]} 33... d5 {[%clk 0:00:10]} 34. Qf6 {[%clk 0:00:24.3]}
34... Qb5+ {[%clk 0:00:03.8]} 35. Kg1 {[%clk 0:00:24.3]} 35... Qd7 {[%clk
0:00:02.5]} 36. Re7 {[%clk 0:00:23.7]} 1-0

[Event "*** Titled Tuesday Blitz"]
[Site "Chess.com"]
[Date "2020.11.24"]
[Round "7"]
[White "ZverevLev"]
[Black "kanzaww"]
[Result "1-0"]
[WhiteElo "2304"]
[BlackElo "2450"]
[TimeControl "180+1"]
[EndTime "11:34:44 PST"]
[Termination "ZverevLev won on time"]

1. e4 {[%clk 0:03:00]} 1... e5 {[%clk 0:02:57.3]} 2. Nf3 {[%clk 0:02:56.9]} 2...
Nc6 {[%clk 0:02:54.8]} 3. Bb5 {[%clk 0:02:55.8]} 3... a6 {[%clk 0:02:52.2]} 4.
Ba4 {[%clk 0:02:53.7]} 4... Nf6 {[%clk 0:02:51.6]} 5. O-O {[%clk 0:02:51.1]}
5... Be7 {[%clk 0:02:50.2]} 6. d3 {[%clk 0:02:46.8]} 6... b5 {[%clk 0:02:49.2]}
7. Bb3 {[%clk 0:02:44.6]} 7... d6 {[%clk 0:02:49.4]} 8. c3 {[%clk 0:02:41.1]}
8... O-O {[%clk 0:02:48.4]} 9. h3 {[%clk 0:02:38.9]} 9... Na5 {[%clk 0:02:47.6]}
10. Bc2 {[%clk 0:02:36.8]} 10... c5 {[%clk 0:02:48.2]} 11. Nbd2 {[%clk
0:02:31.6]} 11... Nc6 {[%clk 0:02:43]} 12. Re1 {[%clk 0:02:29.2]} 12... Re8
{[%clk 0:02:37.9]} 13. Nf1 {[%clk 0:02:27.5]} 13... h6 {[%clk 0:02:37.7]} 14.
Ng3 {[%clk 0:02:23.5]} 14... Bf8 {[%clk 0:02:38.2]} 15. d4 {[%clk 0:02:22.5]}
15... Qc7 {[%clk 0:02:06.3]} 16. Be3 {[%clk 0:02:14]} 16... Nd7 {[%clk 0:01:30]}
17. d5 {[%clk 0:01:56]} 17... Ne7 {[%clk 0:01:29]} 18. Qd2 {[%clk 0:01:54.2]}
18... Nb6 {[%clk 0:01:23.6]} 19. b3 {[%clk 0:01:53]} 19... Kh7 {[%clk
0:01:05.2]} 20. Nxe5 {[%clk 0:01:37.3]} 20... dxe5 {[%clk 0:00:59.9]} 21. d6
{[%clk 0:01:35.8]} 21... Qd8 {[%clk 0:00:51]} 22. dxe7 {[%clk 0:01:34.5]} 22...
Qxe7 {[%clk 0:00:50.7]} 23. Nf5 {[%clk 0:01:30.8]} 23... Qf6 {[%clk 0:00:43.8]}
24. Rad1 {[%clk 0:01:17.4]} 24... Be6 {[%clk 0:00:32.4]} 25. Ng3 {[%clk
0:01:04]} 25... a5 {[%clk 0:00:20.6]} 26. Qe2 {[%clk 0:01:02.3]} 26... Bd7
{[%clk 0:00:17.6]} 27. Bd3 {[%clk 0:00:47.3]} 27... b4 {[%clk 0:00:13]} 28. cxb4
{[%clk 0:00:43.9]} 28... axb4 {[%clk 0:00:11.9]} 29. Bb5 {[%clk 0:00:43.7]}
29... Bxb5 {[%clk 0:00:10.9]} 30. Qxb5 {[%clk 0:00:43]} 30... Rec8 {[%clk
0:00:08.6]} 31. Nf5 {[%clk 0:00:37.6]} 31... Rxa2 {[%clk 0:00:06.2]} 32. Nd6
{[%clk 0:00:32.7]} 32... Bxd6 {[%clk 0:00:05.6]} 33. Qxb6 {[%clk 0:00:32.7]}
33... Be7 {[%clk 0:00:05.6]} 34. Qb7 {[%clk 0:00:31]} 34... Re8 {[%clk
0:00:01.7]} 35. Rd7 {[%clk 0:00:27.8]} 1-0

[Event "*** Titled Tuesday Blitz"]
[Site "Chess.com"]
[Date "2020.11.24"]
[Round "7"]
[White "Resignify"]
[Black "boasovietica"]
[Result "0-1"]
[WhiteElo "2260"]
[BlackElo "2416"]
[TimeControl "180+1"]
[EndTime "11:34:44 PST"]
[Termination "boasovietica won by resignation"]

1. e4 {[%clk 0:03:00.9]} 1... e5 {[%clk 0:02:57]} 2. Nf3 {[%clk 0:03:00.7]} 2...
Nc6 {[%clk 0:02:50.7]} 3. Bb5 {[%clk 0:03:00.1]} 3... a6 {[%clk 0:02:50.8]} 4.
Ba4 {[%clk 0:03:00]} 4... Nf6 {[%clk 0:02:50.9]} 5. O-O {[%clk 0:02:59.3]} 5...
Be7 {[%clk 0:02:51.2]} 6. Re1 {[%clk 0:02:58.4]} 6... b5 {[%clk 0:02:50]} 7. Bb3
{[%clk 0:02:58]} 7... d6 {[%clk 0:02:50.6]} 8. c3 {[%clk 0:02:57.2]} 8... O-O
{[%clk 0:02:48.8]} 9. h3 {[%clk 0:02:56.7]} 9... Bb7 {[%clk 0:02:49.1]} 10. d3
{[%clk 0:02:56.2]} 10... Re8 {[%clk 0:02:43.5]} 11. Ng5 {[%clk 0:02:53.8]} 11...
Rf8 {[%clk 0:02:43.4]} 12. f4 {[%clk 0:02:52.4]} 12... d5 {[%clk 0:02:31.1]} 13.
fxe5 {[%clk 0:02:41]} 13... Nxe5 {[%clk 0:02:26.2]} 14. exd5 {[%clk 0:02:40.2]}
14... Ng6 {[%clk 0:02:11.9]} 15. Nd2 {[%clk 0:01:35.8]} 15... Nxd5 {[%clk
0:02:06.3]} 16. Nde4 {[%clk 0:01:34.4]} 16... Ndf4 {[%clk 0:01:42]} 17. Nxf7
{[%clk 0:01:13.7]} 17... Rxf7 {[%clk 0:01:35.2]} 18. Bxf7+ {[%clk 0:01:14]}
18... Kxf7 {[%clk 0:01:35]} 19. Rf1 {[%clk 0:01:12.8]} 19... Bxe4 {[%clk
0:01:15.9]} 20. Bxf4 {[%clk 0:01:03.9]} 20... Qxd3 {[%clk 0:01:15.2]} 21. Bxc7+
{[%clk 0:00:52.5]} 21... Kg8 {[%clk 0:01:13.9]} 22. Qh5 {[%clk 0:00:37.1]} 22...
Qd2 {[%clk 0:00:47.4]} 23. Rf2 {[%clk 0:00:29.1]} 23... Qg5 {[%clk 0:00:35.7]}
24. Qe2 {[%clk 0:00:23]} 24... Bd5 {[%clk 0:00:19.9]} 25. Kh2 {[%clk 0:00:14.2]}
25... Bc5 {[%clk 0:00:19.6]} 26. Rff1 {[%clk 0:00:09.4]} 26... Bc4 {[%clk
0:00:18.2]} 27. Qf3 {[%clk 0:00:07.1]} 27... Rf8 {[%clk 0:00:16.7]} 28. Qc6
{[%clk 0:00:02.3]} 28... Bxf1 {[%clk 0:00:13.7]} 29. Rxf1 {[%clk 0:00:01.3]}
29... Rxf1 {[%clk 0:00:12.1]} 30. Qd5+ {[%clk 0:00:02.2]} 30... Qxd5 {[%clk
0:00:11.5]} 0-1

[Event "*** Titled Tuesday Blitz"]
[Site "Chess.com"]
[Date "2020.11.24"]
[Round "7"]
[White "Fortitudine"]
[Black "Marty435"]
[Result "1/2-1/2"]
[WhiteElo "2361"]
[BlackElo "2518"]
[TimeControl "180+1"]
[EndTime "11:34:45 PST"]
[Termination "Game drawn by agreement"]

1. c4 {[%clk 0:03:00.9]} 1... Nf6 {[%clk 0:02:59]} 2. g3 {[%clk 0:02:59.2]} 2...
e6 {[%clk 0:02:59.2]} 3. Nf3 {[%clk 0:02:57.6]} 3... d5 {[%clk 0:03:00.1]} 4. b3
{[%clk 0:02:57.8]} 4... Be7 {[%clk 0:03:00.5]} 5. Bg2 {[%clk 0:02:57.2]} 5...
O-O {[%clk 0:03:01.4]} 6. O-O {[%clk 0:02:56.9]} 6... b6 {[%clk 0:03:01.8]} 7.
cxd5 {[%clk 0:02:56]} 7... Nxd5 {[%clk 0:03:01.3]} 8. d4 {[%clk 0:02:53.8]} 8...
Bb7 {[%clk 0:03:00.3]} 9. e4 {[%clk 0:02:53.3]} 9... Nf6 {[%clk 0:03:00.4]} 10.
e5 {[%clk 0:02:52.9]} 10... Nd5 {[%clk 0:03:00.4]} 11. Bb2 {[%clk 0:02:52.1]}
11... c5 {[%clk 0:03:00.7]} 12. Nbd2 {[%clk 0:02:43.1]} 12... Nc6 {[%clk
0:03:00]} 13. dxc5 {[%clk 0:02:35]} 13... Bxc5 {[%clk 0:03:00.9]} 14. Nc4 {[%clk
0:02:29]} 14... Rc8 {[%clk 0:03:00.6]} 15. Qe2 {[%clk 0:02:24.9]} 15... Qe7
{[%clk 0:03:00.5]} 16. Rfd1 {[%clk 0:02:22.3]} 16... Rfd8 {[%clk 0:03:00.6]} 17.
h4 {[%clk 0:02:20.3]} 17... b5 {[%clk 0:02:54.8]} 18. Ncd2 {[%clk 0:02:17]}
18... a6 {[%clk 0:02:43.1]} 19. Ne4 {[%clk 0:02:16.1]} 19... Ba3 {[%clk
0:02:34.8]} 20. Bxa3 {[%clk 0:02:15.6]} 20... Qxa3 {[%clk 0:02:35.7]} 21. Nd6
{[%clk 0:02:15.6]} 21... Nc3 {[%clk 0:02:22.9]} 22. Qe1 {[%clk 0:02:02.3]} 22...
Nxd1 {[%clk 0:02:21.5]} 23. Nxb7 {[%clk 0:01:56.3]} 23... Nb2 {[%clk 0:01:56.1]}
24. Nxd8 {[%clk 0:01:52.1]} 24... Rxd8 {[%clk 0:01:57]} 25. Qc3 {[%clk
0:01:35.7]} 25... Nb4 {[%clk 0:01:47.8]} 26. Qc7 {[%clk 0:01:20.5]} 26... Rf8
{[%clk 0:01:45.7]} 27. Ng5 {[%clk 0:01:05]} 27... h6 {[%clk 0:01:36]} 28. Nxf7
{[%clk 0:00:37]} 28... Rxf7 {[%clk 0:01:31.3]} 29. Qc8+ {[%clk 0:00:36.9]} 29...
Rf8 {[%clk 0:00:49.9]} 30. Qxe6+ {[%clk 0:00:35.6]} 30... Kh8 {[%clk 0:00:47.2]}
31. Be4 {[%clk 0:00:15.9]} 31... N2d3 {[%clk 0:00:41.3]} 32. Qg6 {[%clk
0:00:13.4]} 32... Kg8 {[%clk 0:00:41.7]} 33. Bxd3 {[%clk 0:00:13.4]} 33... Nxd3
{[%clk 0:00:36.6]} 34. Qxd3 {[%clk 0:00:14.3]} 34... Qb2 {[%clk 0:00:37.4]} 35.
Rf1 {[%clk 0:00:12]} 35... Qxe5 {[%clk 0:00:37.2]} 36. Qd2 {[%clk 0:00:11.1]}
36... Kh8 {[%clk 0:00:35.3]} 37. Re1 {[%clk 0:00:10.8]} 37... Qf6 {[%clk
0:00:34.5]} 38. Re4 {[%clk 0:00:10.2]} 38... Qa1+ {[%clk 0:00:34.1]} 39. Kg2
{[%clk 0:00:10]} 39... Qb1 {[%clk 0:00:30.3]} 40. Qe2 {[%clk 0:00:09.2]} 1/2-1/2

[Event "*** Titled Tuesday Blitz"]
[Site "Chess.com"]
[Date "2020.11.24"]
[Round "7"]
[White "PavelShkapenko"]
[Black "Gevo1990"]
[Result "1/2-1/2"]
[WhiteElo "2683"]
[BlackElo "2597"]
[TimeControl "180+1"]
[EndTime "11:34:46 PST"]
[Termination "Game drawn by repetition"]

1. e4 {[%clk 0:03:00.9]} 1... c5 {[%clk 0:02:54.6]} 2. c3 {[%clk 0:03:00.9]}
2... Nf6 {[%clk 0:02:50.7]} 3. e5 {[%clk 0:03:01.1]} 3... Nd5 {[%clk 0:02:50.9]}
4. d4 {[%clk 0:03:02]} 4... d6 {[%clk 0:02:50.6]} 5. Nf3 {[%clk 0:03:01.4]} 5...
e6 {[%clk 0:02:48.6]} 6. dxc5 {[%clk 0:02:46.6]} 6... dxc5 {[%clk 0:02:47.7]} 7.
Bd3 {[%clk 0:02:46]} 7... Nc6 {[%clk 0:02:46.7]} 8. O-O {[%clk 0:02:45.3]} 8...
Be7 {[%clk 0:02:45.7]} 9. Qe2 {[%clk 0:02:45.1]} 9... Qc7 {[%clk 0:02:35.6]} 10.
a4 {[%clk 0:02:37.8]} 10... Bd7 {[%clk 0:02:34.1]} 11. Na3 {[%clk 0:02:33.9]}
11... a6 {[%clk 0:02:33.2]} 12. Nc4 {[%clk 0:02:32.9]} 12... O-O-O {[%clk
0:02:21.1]} 13. a5 {[%clk 0:02:02.8]} 13... f5 {[%clk 0:02:19.2]} 14. exf6
{[%clk 0:02:02]} 14... gxf6 {[%clk 0:02:18.4]} 15. Be4 {[%clk 0:01:59.2]} 15...
Kb8 {[%clk 0:02:15.4]} 16. g3 {[%clk 0:01:46.8]} 16... Bc8 {[%clk 0:02:06.1]}
17. Rd1 {[%clk 0:01:44.7]} 17... Rhg8 {[%clk 0:01:52.9]} 18. Bxd5 {[%clk
0:01:34.2]} 18... exd5 {[%clk 0:01:50.7]} 19. Nb6 {[%clk 0:01:34.4]} 19... d4
{[%clk 0:01:44.1]} 20. cxd4 {[%clk 0:01:32.2]} 20... Bg4 {[%clk 0:01:44]} 21. d5
{[%clk 0:00:56.6]} 21... Nd4 {[%clk 0:01:42.8]} 22. Rxd4 {[%clk 0:00:56.1]}
22... cxd4 {[%clk 0:01:42.2]} 23. Bd2 {[%clk 0:00:44.4]} 23... Bd6 {[%clk
0:01:34.3]} 24. Qd3 {[%clk 0:00:44]} 24... Bxf3 {[%clk 0:01:19.4]} 25. Qxf3
{[%clk 0:00:43.6]} 25... Qc2 {[%clk 0:01:05.8]} 26. Bf4 {[%clk 0:00:43.1]} 26...
Qxb2 {[%clk 0:01:01.9]} 27. Rd1 {[%clk 0:00:39.1]} 27... Qc3 {[%clk 0:00:57.8]}
28. Bxd6+ {[%clk 0:00:38.6]} 28... Rxd6 {[%clk 0:00:57.5]} 29. Qf4 {[%clk
0:00:39.2]} 29... Rd8 {[%clk 0:00:58.1]} 30. Rxd4 {[%clk 0:00:38.9]} 30... Qa1+
{[%clk 0:00:57.2]} 31. Kg2 {[%clk 0:00:38.6]} 31... Ka7 {[%clk 0:00:56.2]} 32.
Ra4 {[%clk 0:00:32]} 32... Qc3 {[%clk 0:00:53.4]} 33. Rc4 {[%clk 0:00:26.5]}
33... Qxa5 {[%clk 0:00:50.8]} 34. Nc8+ {[%clk 0:00:25.4]} 34... Rxc8 {[%clk
0:00:51]} 35. Rxc8 {[%clk 0:00:25.7]} 35... Qxd5+ {[%clk 0:00:51.1]} 36. Kg1
{[%clk 0:00:24.1]} 36... Qd1+ {[%clk 0:00:49]} 37. Kg2 {[%clk 0:00:24.3]} 37...
Qd5+ {[%clk 0:00:49.9]} 38. Kg1 {[%clk 0:00:24.5]} 38... Rc6 {[%clk 0:00:46.1]}
39. Qe3+ {[%clk 0:00:23.7]} 39... Rb6 {[%clk 0:00:44.7]} 40. Rc1 {[%clk
0:00:23.2]} 40... a5 {[%clk 0:00:41.7]} 41. Rb1 {[%clk 0:00:22.8]} 41... Qc6
{[%clk 0:00:40.5]} 42. Ra1 {[%clk 0:00:21.6]} 42... a4 {[%clk 0:00:39.1]} 43.
Qd4 {[%clk 0:00:20.6]} 43... Kb8 {[%clk 0:00:33.4]} 44. Qd8+ {[%clk 0:00:20.1]}
44... Ka7 {[%clk 0:00:32.9]} 45. Qd4 {[%clk 0:00:20.7]} 45... Kb8 {[%clk
0:00:33.3]} 46. Qd8+ {[%clk 0:00:20.8]} 46... Ka7 {[%clk 0:00:33.1]} 47. Qd4
{[%clk 0:00:21.4]} 1/2-1/2